[Event "Late-Titled-Tuesday-Blitz-September-12-2023"]
[Site "Chess.com"]
[Date "2023.09.12"]
[Round "1"]
[White "TanitoluwaAps116"]
[Black "ArturoCaceres"]
[Result "0-1"]
[WhiteElo "2716"]
[BlackElo "2427"]
[TimeControl "180+1"]
[EndTime "14:07:05 PDT"]
[Termination "ArturoCaceres won by checkmate"]

1. e4 {[%clk 0:02:57.2]} 1... c5 {[%clk 0:02:44.3]} 2. Nf3 {[%clk 0:02:56.2]}
2... g6 {[%clk 0:02:41.8]} 3. c3 {[%clk 0:02:55.6]} 3... Bg7 {[%clk 0:02:40.6]}
4. d4 {[%clk 0:02:54.6]} 4... cxd4 {[%clk 0:02:39.9]} 5. cxd4 {[%clk 0:02:55.5]}
5... d5 {[%clk 0:02:39]} 6. e5 {[%clk 0:02:52.3]} 6... Bg4 {[%clk 0:02:36.1]} 7.
Bb5+ {[%clk 0:02:46.5]} 7... Nd7 {[%clk 0:02:29.2]} 8. h3 {[%clk 0:02:46.6]}
8... Bxf3 {[%clk 0:02:29]} 9. Qxf3 {[%clk 0:02:47.5]} 9... e6 {[%clk 0:02:29.7]}
10. Nc3 {[%clk 0:02:44.4]} 10... a6 {[%clk 0:02:29.5]} 11. Ba4 {[%clk
0:02:41.3]} 11... b5 {[%clk 0:02:25.5]} 12. Bb3 {[%clk 0:02:40.9]} 12... Nb6
{[%clk 0:02:24.7]} 13. a4 {[%clk 0:02:37.2]} 13... b4 {[%clk 0:02:24.8]} 14. a5
{[%clk 0:02:37.7]} 14... Nc4 {[%clk 0:01:44.4]} 15. Bxc4 {[%clk 0:02:06.7]}
15... bxc3 {[%clk 0:01:34]} 16. Bb3 {[%clk 0:01:51.4]} 16... cxb2 {[%clk
0:01:11.2]} 17. Ba4+ {[%clk 0:01:51.2]} 17... Kf8 {[%clk 0:01:10.2]} 18. Bxb2
{[%clk 0:01:52.1]} 18... f5 {[%clk 0:00:59.2]} 19. exf6 {[%clk 0:01:49.2]} 19...
Nxf6 {[%clk 0:00:58.3]} 20. O-O {[%clk 0:01:49.2]} 20... Kf7 {[%clk 0:00:51.1]}
21. Rfe1 {[%clk 0:01:49.4]} 21... Rb8 {[%clk 0:00:47.2]} 22. Ba3 {[%clk
0:01:44.9]} 22... Bf8 {[%clk 0:00:40]} 23. Qe2 {[%clk 0:01:36]} 23... Bxa3
{[%clk 0:00:12.1]} 24. Qxe6+ {[%clk 0:01:35.6]} 24... Kg7 {[%clk 0:00:12.2]} 25.
Rxa3 {[%clk 0:01:36.3]} 25... Rf8 {[%clk 0:00:06.9]} 26. Qxa6 {[%clk 0:01:15.5]}
26... Rb2 {[%clk 0:00:05.9]} 27. Qe6 {[%clk 0:00:48.9]} 27... Ne4 {[%clk
0:00:05.3]} 28. Qe5+ {[%clk 0:00:49.2]} 28... Kh6 {[%clk 0:00:04.3]} 29. f3
{[%clk 0:00:20.7]} 29... Qh4 {[%clk 0:00:04.2]} 30. Rf1 {[%clk 0:00:21.1]} 30...
Rf5 {[%clk 0:00:04.1]} 31. Qe8 {[%clk 0:00:14.6]} 31... Rxg2+ {[%clk 0:00:03.1]}
32. Kxg2 {[%clk 0:00:11.6]} 32... Qg3+ {[%clk 0:00:03.5]} 33. Kh1 {[%clk
0:00:12.5]} 33... Qxh3+ {[%clk 0:00:03.9]} 34. Kg1 {[%clk 0:00:13.4]} 34... Rg5#
{[%clk 0:00:04.5]} 0-1

[Event "Late-Titled-Tuesday-Blitz-September-12-2023"]
[Site "Chess.com"]
[Date "2023.09.12"]
[Round "1"]
[White "enestnrvrd"]
[Black "leschebaza"]
[Result "1-0"]
[WhiteElo "2727"]
[BlackElo "2398"]
[TimeControl "180+1"]
[EndTime "14:07:07 PDT"]
[Termination "enestnrvrd won by checkmate"]

1. Nf3 {[%clk 0:03:00.9]} 1... Nf6 {[%clk 0:02:59.7]} 2. c4 {[%clk 0:03:01]}
2... g6 {[%clk 0:02:58.3]} 3. Nc3 {[%clk 0:03:01.5]} 3... Bg7 {[%clk 0:02:58.1]}
4. g3 {[%clk 0:03:02.1]} 4... O-O {[%clk 0:02:58]} 5. Bg2 {[%clk 0:03:02.2]}
5... d6 {[%clk 0:02:58.4]} 6. O-O {[%clk 0:03:01.5]} 6... c5 {[%clk 0:02:58.7]}
7. d4 {[%clk 0:02:59.7]} 7... Nc6 {[%clk 0:02:58]} 8. dxc5 {[%clk 0:02:52.5]}
8... dxc5 {[%clk 0:02:58.9]} 9. Bf4 {[%clk 0:02:52.7]} 9... Bf5 {[%clk
0:02:41.1]} 10. Ne5 {[%clk 0:02:49]} 10... Nxe5 {[%clk 0:02:38]} 11. Bxe5 {[%clk
0:02:49.9]} 11... Qc8 {[%clk 0:02:30.9]} 12. Qb3 {[%clk 0:02:47.9]} 12... b6
{[%clk 0:02:27.1]} 13. Bxa8 {[%clk 0:02:44]} 13... Qxa8 {[%clk 0:02:28]} 14. f3
{[%clk 0:02:44.5]} 14... h5 {[%clk 0:02:21.3]} 15. Rfd1 {[%clk 0:02:44.1]} 15...
h4 {[%clk 0:02:20.8]} 16. e4 {[%clk 0:02:37.4]} 16... Be6 {[%clk 0:01:53.6]} 17.
Nd5 {[%clk 0:02:34.5]} 17... hxg3 {[%clk 0:01:50.6]} 18. hxg3 {[%clk 0:02:31]}
18... Bxd5 {[%clk 0:01:36.9]} 19. cxd5 {[%clk 0:02:30.4]} 19... Nh5 {[%clk
0:01:30.2]} 20. Bxg7 {[%clk 0:02:24.2]} 20... Kxg7 {[%clk 0:01:31.1]} 21. f4
{[%clk 0:02:23.8]} 21... Qc8 {[%clk 0:01:26.8]} 22. Kg2 {[%clk 0:02:16.7]} 22...
Qg4 {[%clk 0:01:25.9]} 23. Qf3 {[%clk 0:02:16.4]} 23... Qd7 {[%clk 0:01:15.4]}
24. Rh1 {[%clk 0:02:10.4]} 24... a5 {[%clk 0:01:07.7]} 25. g4 {[%clk 0:02:03]}
25... Nf6 {[%clk 0:01:06.6]} 26. g5 {[%clk 0:02:01.6]} 26... Nh5 {[%clk
0:01:06.3]} 27. Rh4 {[%clk 0:01:59.5]} 27... Rh8 {[%clk 0:01:04.9]} 28. Rah1
{[%clk 0:01:59.3]} 28... a4 {[%clk 0:01:03.3]} 29. f5 {[%clk 0:01:56.5]} 29...
Qb5 {[%clk 0:00:59]} 30. f6+ {[%clk 0:01:51.9]} 30... exf6 {[%clk 0:00:58.2]}
31. gxf6+ {[%clk 0:01:52.4]} 31... Kg8 {[%clk 0:00:46.3]} 32. b3 {[%clk
0:01:48.8]} 32... axb3 {[%clk 0:00:44.6]} 33. axb3 {[%clk 0:01:49.7]} 33... Qb4
{[%clk 0:00:43.9]} 34. Qe3 {[%clk 0:01:37.8]} 34... Qa3 {[%clk 0:00:35.7]} 35.
Rf1 {[%clk 0:01:28.6]} 35... Qb2+ {[%clk 0:00:33.7]} 36. Rf2 {[%clk 0:01:27.4]}
36... Qe5 {[%clk 0:00:34]} 37. Qh3 {[%clk 0:00:52.8]} 37... Qg5+ {[%clk
0:00:28.6]} 38. Qg4 {[%clk 0:00:44.2]} 38... Qe5 {[%clk 0:00:28.2]} 39. Qf3
{[%clk 0:00:35.9]} 39... Qg5+ {[%clk 0:00:26.9]} 40. Rg4 {[%clk 0:00:36.1]}
40... Qe5 {[%clk 0:00:26.6]} 41. Qe3 {[%clk 0:00:28.6]} 41... Nxf6 {[%clk
0:00:24.2]} 42. Qf4 {[%clk 0:00:23.4]} 42... Nxg4 {[%clk 0:00:20.3]} 43. Qxf7#
{[%clk 0:00:23.1]} 1-0

[Event "Late-Titled-Tuesday-Blitz-September-12-2023"]
[Site "Chess.com"]
[Date "2023.09.12"]
[Round "1"]
[White "AndreiITrifan"]
[Black "Good_Knight_Kiss"]
[Result "1-0"]
[WhiteElo "2653"]
[BlackElo "2348"]
[TimeControl "180+1"]
[EndTime "14:07:07 PDT"]
[Termination "AndreiITrifan won on time"]

1. Nf3 {[%clk 0:02:59.6]} 1... Nf6 {[%clk 0:02:59.8]} 2. e3 {[%clk 0:02:58.3]}
2... g6 {[%clk 0:02:59.5]} 3. b3 {[%clk 0:02:58.2]} 3... Bg7 {[%clk 0:02:59.4]}
4. Bb2 {[%clk 0:02:59.1]} 4... d6 {[%clk 0:02:58]} 5. d4 {[%clk 0:02:58.8]} 5...
O-O {[%clk 0:02:57.9]} 6. Be2 {[%clk 0:02:58.5]} 6... e5 {[%clk 0:02:57.6]} 7.
dxe5 {[%clk 0:02:59.4]} 7... Ng4 {[%clk 0:02:57.4]} 8. O-O {[%clk 0:02:57.6]}
8... Nc6 {[%clk 0:02:57.1]} 9. c4 {[%clk 0:02:57.8]} 9... dxe5 {[%clk
0:02:56.7]} 10. h3 {[%clk 0:02:46.4]} 10... Nh6 {[%clk 0:02:37.6]} 11. Nc3
{[%clk 0:02:23.5]} 11... e4 {[%clk 0:02:13.3]} 12. Nd2 {[%clk 0:02:23.2]} 12...
f5 {[%clk 0:02:07.3]} 13. a3 {[%clk 0:02:22.8]} 13... Nf7 {[%clk 0:01:56.3]} 14.
Qc2 {[%clk 0:02:20.8]} 14... Be6 {[%clk 0:01:48.8]} 15. Rad1 {[%clk 0:02:17.7]}
15... Qe7 {[%clk 0:01:48.8]} 16. Nd5 {[%clk 0:02:12.8]} 16... Bxd5 {[%clk
0:01:46.1]} 17. Bxg7 {[%clk 0:02:03.2]} 17... Kxg7 {[%clk 0:01:47]} 18. cxd5
{[%clk 0:02:03.4]} 18... Nce5 {[%clk 0:01:45.2]} 19. Nc4 {[%clk 0:02:01.9]}
19... Nxc4 {[%clk 0:01:31.5]} 20. Qxc4 {[%clk 0:01:56.9]} 20... Rad8 {[%clk
0:01:12.7]} 21. Qd4+ {[%clk 0:01:53]} 21... Qe5 {[%clk 0:00:50.3]} 22. Qxa7
{[%clk 0:01:52.5]} 22... b6 {[%clk 0:00:39.8]} 23. d6 {[%clk 0:01:43.6]} 23...
cxd6 {[%clk 0:00:22.9]} 24. Qxb6 {[%clk 0:01:28.6]} 24... Rb8 {[%clk 0:00:22.8]}
25. Qd4 {[%clk 0:01:03.7]} 25... Qxd4 {[%clk 0:00:22.3]} 26. Rxd4 {[%clk
0:01:04.6]} 26... Rxb3 {[%clk 0:00:22.4]} 27. Ra1 {[%clk 0:01:05.1]} 27... Rfb8
{[%clk 0:00:13.3]} 28. a4 {[%clk 0:01:03.6]} 28... Rb1+ {[%clk 0:00:12.5]} 29.
Rd1 {[%clk 0:01:02.8]} 29... Rxd1+ {[%clk 0:00:09.3]} 30. Bxd1 {[%clk
0:01:01.1]} 30... Ra8 {[%clk 0:00:06.9]} 31. a5 {[%clk 0:01:00.3]} 31... Kf6
{[%clk 0:00:06.3]} 32. Bb3 {[%clk 0:00:59.6]} 32... Ne5 {[%clk 0:00:01.8]} 33.
a6 {[%clk 0:00:55.7]} 33... Ra7 {[%clk 0:00:01.5]} 34. Bd5 {[%clk 0:00:53]}
34... Nd7 {[%clk 0:00:01.5]} 35. f4 {[%clk 0:00:45.5]} 35... Nc5 {[%clk
0:00:01.5]} 36. Bc4 {[%clk 0:00:43.2]} 36... h6 {[%clk 0:00:01.5]} 37. g4 {[%clk
0:00:38.8]} 37... g5 {[%clk 0:00:01.3]} 38. gxf5 {[%clk 0:00:30.7]} 1-0

[Event "Late-Titled-Tuesday-Blitz-September-12-2023"]
[Site "Chess.com"]
[Date "2023.09.12"]
[Round "1"]
[White "GoltsevDmitry2000"]
[Black "Al_Shima"]
[Result "0-1"]
[WhiteElo "2628"]
[BlackElo "2361"]
[TimeControl "180+1"]
[EndTime "14:07:08 PDT"]
[Termination "Al_Shima won by checkmate"]

1. e4 {[%clk 0:02:59.3]} 1... d5 {[%clk 0:02:57.2]} 2. exd5 {[%clk 0:02:58.8]}
2... Nf6 {[%clk 0:02:56.6]} 3. Nf3 {[%clk 0:02:58.8]} 3... Nxd5 {[%clk 0:02:54]}
4. d4 {[%clk 0:02:58.9]} 4... Bf5 {[%clk 0:02:53.7]} 5. c4 {[%clk 0:02:58.3]}
5... Nb4 {[%clk 0:02:53.5]} 6. Na3 {[%clk 0:02:57.8]} 6... e6 {[%clk 0:02:53.5]}
7. Be2 {[%clk 0:02:57.9]} 7... Be7 {[%clk 0:02:53.6]} 8. O-O {[%clk 0:02:58.1]}
8... O-O {[%clk 0:02:53.7]} 9. Bf4 {[%clk 0:02:58.5]} 9... a6 {[%clk 0:02:52.8]}
10. Ne5 {[%clk 0:02:56.5]} 10... N8c6 {[%clk 0:02:51.5]} 11. Nxc6 {[%clk
0:02:55.7]} 11... Nxc6 {[%clk 0:02:52.4]} 12. d5 {[%clk 0:02:56.1]} 12... Nb4
{[%clk 0:02:43.8]} 13. Bf3 {[%clk 0:02:52.1]} 13... Bf6 {[%clk 0:02:42]} 14. Qd2
{[%clk 0:02:49.3]} 14... c5 {[%clk 0:02:36.7]} 15. Be3 {[%clk 0:02:22]} 15...
Qb6 {[%clk 0:02:18]} 16. g4 {[%clk 0:01:40.9]} 16... Bg6 {[%clk 0:02:16.6]} 17.
g5 {[%clk 0:01:40.9]} 17... Be5 {[%clk 0:02:16]} 18. Be2 {[%clk 0:01:40.6]}
18... Rad8 {[%clk 0:01:57]} 19. f4 {[%clk 0:01:39.6]} 19... Bb8 {[%clk
0:01:55.5]} 20. Qc1 {[%clk 0:01:16.8]} 20... Rfe8 {[%clk 0:01:48.5]} 21. h4
{[%clk 0:01:02]} 21... Ba7 {[%clk 0:01:36.3]} 22. h5 {[%clk 0:00:45.4]} 22...
Be4 {[%clk 0:01:35.3]} 23. dxe6 {[%clk 0:00:43]} 23... Qxe6 {[%clk 0:01:32.9]}
24. Kh2 {[%clk 0:00:41.1]} 24... Bd3 {[%clk 0:01:24.7]} 25. Rf3 {[%clk
0:00:09.5]} 25... Bxe2 {[%clk 0:01:22.8]} 26. Rg3 {[%clk 0:00:10.2]} 26... Bxh5
{[%clk 0:01:19.9]} 27. Nc2 {[%clk 0:00:08]} 27... Nxc2 {[%clk 0:01:13.4]} 28.
Qxc2 {[%clk 0:00:08.9]} 28... Bg6 {[%clk 0:01:08.8]} 29. Qf2 {[%clk 0:00:08]}
29... Bf5 {[%clk 0:01:01.7]} 30. b3 {[%clk 0:00:07.9]} 30... b6 {[%clk
0:01:00.5]} 31. Re1 {[%clk 0:00:06.1]} 31... Qg6 {[%clk 0:00:58.1]} 32. Qb2
{[%clk 0:00:05.1]} 32... a5 {[%clk 0:00:57]} 33. Kg1 {[%clk 0:00:03.2]} 33...
Bb8 {[%clk 0:00:56.6]} 34. Kg2 {[%clk 0:00:02.3]} 34... Bc7 {[%clk 0:00:56.3]}
35. Kf2 {[%clk 0:00:02.1]} 35... Re4 {[%clk 0:00:52.5]} 36. Rh1 {[%clk
0:00:02.4]} 36... Bxf4 {[%clk 0:00:50.2]} 37. Bxf4 {[%clk 0:00:01.9]} 37...
Rxf4+ {[%clk 0:00:51.1]} 38. Kg2 {[%clk 0:00:02.5]} 38... Be4+ {[%clk
0:00:48.9]} 39. Kh2 {[%clk 0:00:03]} 39... Rh4+ {[%clk 0:00:47.5]} 40. Kg1
{[%clk 0:00:01.5]} 40... Rxh1+ {[%clk 0:00:34]} 41. Kf2 {[%clk 0:00:01.9]} 41...
Rh2+ {[%clk 0:00:34.1]} 42. Ke3 {[%clk 0:00:02.4]} 42... Rd3+ {[%clk 0:00:30.3]}
43. Kf4 {[%clk 0:00:02.3]} 43... Qf5# {[%clk 0:00:30.6]} 0-1

[Event "Late-Titled-Tuesday-Blitz-September-12-2023"]
[Site "Chess.com"]
[Date "2023.09.12"]
[Round "1"]
[White "MusicCityMaster"]
[Black "AlexOstrovskiy"]
[Result "1-0"]
[WhiteElo "2377"]
[BlackElo "2642"]
[TimeControl "180+1"]
[EndTime "14:07:09 PDT"]
[Termination "MusicCityMaster won by resignation"]

1. e4 {[%clk 0:03:00.9]} 1... d5 {[%clk 0:02:54.4]} 2. exd5 {[%clk 0:03:00.2]}
2... Nf6 {[%clk 0:02:53.4]} 3. d4 {[%clk 0:02:58.5]} 3... Bg4 {[%clk 0:02:52.2]}
4. f3 {[%clk 0:02:55.6]} 4... Bf5 {[%clk 0:02:52]} 5. Bb5+ {[%clk 0:02:56.2]}
5... Nbd7 {[%clk 0:02:50.6]} 6. c4 {[%clk 0:02:56.3]} 6... e6 {[%clk 0:02:48.8]}
7. Nc3 {[%clk 0:02:51.2]} 7... exd5 {[%clk 0:02:45.9]} 8. cxd5 {[%clk
0:02:48.6]} 8... a6 {[%clk 0:02:46]} 9. Bd3 {[%clk 0:02:45.4]} 9... Bxd3 {[%clk
0:02:43.8]} 10. Qxd3 {[%clk 0:02:46.3]} 10... Bd6 {[%clk 0:02:44.2]} 11. Nge2
{[%clk 0:02:45.6]} 11... O-O {[%clk 0:02:42.8]} 12. O-O {[%clk 0:02:38.7]} 12...
Nb6 {[%clk 0:02:41.2]} 13. Bg5 {[%clk 0:02:30.6]} 13... Be7 {[%clk 0:02:38.5]}
14. Nf4 {[%clk 0:02:21.4]} 14... h6 {[%clk 0:02:38.3]} 15. Bxf6 {[%clk
0:02:19.9]} 15... Bxf6 {[%clk 0:02:39.2]} 16. a4 {[%clk 0:02:12.9]} 16... Qd6
{[%clk 0:02:35.7]} 17. Nh5 {[%clk 0:02:07.7]} 17... Be7 {[%clk 0:02:32.6]} 18.
Qe4 {[%clk 0:01:55]} 18... Rfe8 {[%clk 0:02:32.5]} 19. a5 {[%clk 0:01:47.7]}
19... Nd7 {[%clk 0:02:21.3]} 20. Qg4 {[%clk 0:01:39.7]} 20... Bf6 {[%clk
0:01:05.9]} 21. Rad1 {[%clk 0:01:21.8]} 21... g6 {[%clk 0:00:06.8]} 22. Ne4
{[%clk 0:01:14.1]} 22... Qe7 {[%clk 0:00:07.3]} 23. Qxd7 {[%clk 0:01:04.1]}
23... gxh5 {[%clk 0:00:07]} 24. Qf5 {[%clk 0:01:00]} 24... Bg7 {[%clk
0:00:05.9]} 25. Qxh5 {[%clk 0:00:58.6]} 25... Qb4 {[%clk 0:00:06]} 26. Qg4
{[%clk 0:00:48.9]} 26... Kf8 {[%clk 0:00:06.5]} 27. Nc5 {[%clk 0:00:47.1]} 27...
Rad8 {[%clk 0:00:01.8]} 28. Kh1 {[%clk 0:00:29.3]} 28... Qb5 {[%clk 0:00:02.2]}
29. Rfe1 {[%clk 0:00:22.6]} 29... Rxe1+ {[%clk 0:00:02.3]} 30. Rxe1 {[%clk
0:00:22.9]} 30... b6 {[%clk 0:00:03.2]} 31. Ne4 {[%clk 0:00:19.6]} 31... Qxd5
{[%clk 0:00:03.1]} 32. Qf4 {[%clk 0:00:18.4]} 32... Qxd4 {[%clk 0:00:02.1]} 33.
Qxc7 {[%clk 0:00:18.3]} 33... bxa5 {[%clk 0:00:01.9]} 34. h3 {[%clk 0:00:11.2]}
34... Qd2 {[%clk 0:00:02.2]} 35. Nxd2 {[%clk 0:00:10]} 1-0

[Event "Late-Titled-Tuesday-Blitz-September-12-2023"]
[Site "Chess.com"]
[Date "2023.09.12"]
[Round "1"]
[White "cukus"]
[Black "cassoulet"]
[Result "0-1"]
[WhiteElo "2419"]
[BlackElo "2764"]
[TimeControl "180+1"]
[EndTime "14:07:17 PDT"]
[Termination "cassoulet won by checkmate"]

1. e4 {[%clk 0:03:00.9]} 1... c5 {[%clk 0:02:59.6]} 2. Nf3 {[%clk 0:03:00.5]}
2... Nc6 {[%clk 0:03:00.1]} 3. d4 {[%clk 0:02:59.4]} 3... cxd4 {[%clk
0:03:00.4]} 4. Nxd4 {[%clk 0:03:00.3]} 4... Nf6 {[%clk 0:03:00.8]} 5. Nc3 {[%clk
0:03:00.3]} 5... e6 {[%clk 0:03:00.5]} 6. Nxc6 {[%clk 0:02:49.7]} 6... bxc6
{[%clk 0:03:01.4]} 7. e5 {[%clk 0:02:48.6]} 7... Nd5 {[%clk 0:03:01]} 8. Ne4
{[%clk 0:02:48.5]} 8... Bb7 {[%clk 0:02:59.2]} 9. Be2 {[%clk 0:02:46.6]} 9... c5
{[%clk 0:02:57.4]} 10. O-O {[%clk 0:02:45.4]} 10... Qc7 {[%clk 0:02:54.6]} 11.
Nd6+ {[%clk 0:02:38.6]} 11... Bxd6 {[%clk 0:02:49.9]} 12. exd6 {[%clk
0:02:37.7]} 12... Qc6 {[%clk 0:02:42.9]} 13. Bf3 {[%clk 0:02:19.9]} 13... c4
{[%clk 0:02:42.2]} 14. Qd4 {[%clk 0:02:12]} 14... O-O {[%clk 0:02:37.8]} 15. Bf4
{[%clk 0:01:41.9]} 15... f6 {[%clk 0:02:34.7]} 16. Bg3 {[%clk 0:01:39.8]} 16...
Rfc8 {[%clk 0:02:01.2]} 17. Rad1 {[%clk 0:01:21.8]} 17... Qb6 {[%clk 0:01:55.4]}
18. Rfe1 {[%clk 0:01:16.3]} 18... Qxd4 {[%clk 0:01:53.6]} 19. Rxd4 {[%clk
0:01:16.2]} 19... c3 {[%clk 0:01:51.4]} 20. b3 {[%clk 0:01:15]} 20... Rab8
{[%clk 0:01:48.7]} 21. Ra4 {[%clk 0:01:10.3]} 21... a6 {[%clk 0:01:42.4]} 22.
Bxd5 {[%clk 0:01:06.3]} 22... Bxd5 {[%clk 0:01:41.5]} 23. Rxa6 {[%clk
0:01:05.8]} 23... Ra8 {[%clk 0:01:41.3]} 24. Rxa8 {[%clk 0:01:04.2]} 24... Rxa8
{[%clk 0:01:42.2]} 25. a4 {[%clk 0:01:04.2]} 25... Ra6 {[%clk 0:01:39.4]} 26.
Re3 {[%clk 0:00:59.7]} 26... Rc6 {[%clk 0:01:38.7]} 27. f3 {[%clk 0:00:59.2]}
27... Bxb3 {[%clk 0:01:37.8]} 28. Be1 {[%clk 0:00:42.8]} 28... Bxa4 {[%clk
0:01:25.7]} 29. Rxc3 {[%clk 0:00:42.3]} 29... Rxd6 {[%clk 0:01:20.2]} 30. Kf2
{[%clk 0:00:39.3]} 30... Kf7 {[%clk 0:01:19.2]} 31. Rc7 {[%clk 0:00:31.6]} 31...
e5 {[%clk 0:01:16.4]} 32. Bb4 {[%clk 0:00:29.4]} 32... Rd4 {[%clk 0:01:11.8]}
33. c3 {[%clk 0:00:25.6]} 33... Rd2+ {[%clk 0:01:11.9]} 34. Kg3 {[%clk
0:00:25.8]} 34... f5 {[%clk 0:01:11.7]} 35. c4 {[%clk 0:00:19.7]} 35... Rc2
{[%clk 0:01:05.1]} 36. Bd6 {[%clk 0:00:15.7]} 36... Ke6 {[%clk 0:01:01.9]} 37.
c5 {[%clk 0:00:15.6]} 37... f4+ {[%clk 0:00:59.9]} 38. Kh3 {[%clk 0:00:15.2]}
38... Bb5 {[%clk 0:00:59.5]} 39. g3 {[%clk 0:00:08]} 39... g5 {[%clk 0:00:41.8]}
40. gxf4 {[%clk 0:00:03.2]} 40... exf4 {[%clk 0:00:42.7]} 41. Rc8 {[%clk
0:00:02.6]} 41... Bf1+ {[%clk 0:00:38.6]} 42. Kg4 {[%clk 0:00:02.8]} 42... Rg2+
{[%clk 0:00:39.5]} 43. Kh5 {[%clk 0:00:02.4]} 43... Be2 {[%clk 0:00:39.6]} 44.
Re8+ {[%clk 0:00:02.1]} 44... Kf7 {[%clk 0:00:37.1]} 45. Rf8+ {[%clk 0:00:01.8]}
45... Kg7 {[%clk 0:00:37.1]} 46. Re8 {[%clk 0:00:01.3]} 46... Bxf3# {[%clk
0:00:35.3]} 0-1

[Event "Late-Titled-Tuesday-Blitz-September-12-2023"]
[Site "Chess.com"]
[Date "2023.09.12"]
[Round "1"]
[White "MelihKaanCan"]
[Black "Fandorine"]
[Result "0-1"]
[WhiteElo "2459"]
[BlackElo "2899"]
[TimeControl "180+1"]
[EndTime "14:07:18 PDT"]
[Termination "Fandorine won by resignation"]

1. Nf3 {[%clk 0:02:59.6]} 1... Nf6 {[%clk 0:02:57.2]} 2. c4 {[%clk 0:02:57.5]}
2... g6 {[%clk 0:02:55.4]} 3. Nc3 {[%clk 0:02:54.3]} 3... Bg7 {[%clk 0:02:55.4]}
4. g3 {[%clk 0:02:54.7]} 4... O-O {[%clk 0:02:51.7]} 5. Bg2 {[%clk 0:02:55.2]}
5... d6 {[%clk 0:02:51.2]} 6. O-O {[%clk 0:02:55.2]} 6... c5 {[%clk 0:02:51.1]}
7. d4 {[%clk 0:02:54.8]} 7... Nc6 {[%clk 0:02:51.2]} 8. b3 {[%clk 0:02:52.1]}
8... Bg4 {[%clk 0:02:50]} 9. dxc5 {[%clk 0:02:24.6]} 9... dxc5 {[%clk
0:02:43.9]} 10. Bb2 {[%clk 0:02:20]} 10... Qc8 {[%clk 0:02:41.9]} 11. Qc1 {[%clk
0:02:09.8]} 11... Bh3 {[%clk 0:02:37.2]} 12. Rd1 {[%clk 0:02:07.9]} 12... Bxg2
{[%clk 0:02:33.9]} 13. Kxg2 {[%clk 0:02:08.8]} 13... b6 {[%clk 0:02:28.2]} 14.
Nd5 {[%clk 0:02:03.1]} 14... Qb7 {[%clk 0:02:27.9]} 15. Bxf6 {[%clk 0:01:56]}
15... Bxf6 {[%clk 0:02:25.4]} 16. Nxf6+ {[%clk 0:01:51.8]} 16... exf6 {[%clk
0:02:25.2]} 17. Qf4 {[%clk 0:01:52.7]} 17... f5 {[%clk 0:02:06.8]} 18. Kg1
{[%clk 0:01:32.5]} 18... Rfe8 {[%clk 0:02:04]} 19. Qh6 {[%clk 0:01:23.4]} 19...
Rad8 {[%clk 0:01:50.4]} 20. Ng5 {[%clk 0:01:11.7]} 20... f6 {[%clk 0:01:48.5]}
21. Rxd8 {[%clk 0:01:08.3]} 21... Nxd8 {[%clk 0:01:38.8]} 22. Nh3 {[%clk
0:01:08.3]} 22... Rxe2 {[%clk 0:01:37.4]} 23. Nf4 {[%clk 0:01:08.5]} 23... Nf7
{[%clk 0:01:34.5]} 24. Qh4 {[%clk 0:01:02.8]} 24... Ng5 {[%clk 0:01:32.4]} 25.
Qh6 {[%clk 0:00:56.7]} 25... Rd2 {[%clk 0:01:08.2]} 26. Nd5 {[%clk 0:00:38.7]}
26... Rxd5 {[%clk 0:01:07.6]} 27. cxd5 {[%clk 0:00:36.2]} 27... Qxd5 {[%clk
0:01:08.5]} 28. h4 {[%clk 0:00:25.2]} 28... Nh3+ {[%clk 0:00:49.6]} 29. Kh2
{[%clk 0:00:15.5]} 29... Nxf2 {[%clk 0:00:49.7]} 30. Qf4 {[%clk 0:00:14.8]}
30... Ng4+ {[%clk 0:00:42.2]} 31. Kh3 {[%clk 0:00:15.1]} 31... Ne5 {[%clk
0:00:33]} 32. Re1 {[%clk 0:00:13.7]} 32... Kg7 {[%clk 0:00:30.9]} 33. h5 {[%clk
0:00:12.6]} 33... a5 {[%clk 0:00:27.5]} 34. h6+ {[%clk 0:00:11.5]} 34... Kf7
{[%clk 0:00:27.8]} 35. Rc1 {[%clk 0:00:06.7]} 35... Qe6 {[%clk 0:00:24.5]} 36.
Re1 {[%clk 0:00:05.5]} 36... g5 {[%clk 0:00:24.2]} 37. Qa4 {[%clk 0:00:04.6]}
37... f4+ {[%clk 0:00:22.7]} 38. Kh2 {[%clk 0:00:04.3]} 38... Nf3+ {[%clk
0:00:22.4]} 39. Kg2 {[%clk 0:00:03.9]} 39... Nxe1+ {[%clk 0:00:22.4]} 0-1